fUSD/lending_fUSD_20240419
["ID","MTS","AMOUNT","RATE_DAILY","PERIOD"]
[322937383,1713535846550,-500.0,0.00014898,2]
[322937384,1713535846559,-500.0,0.00014898,2]
[322937385,1713535846568,-500.0,0.00014898,2]
[322937386,1713535846577,-500.0,0.00014898,2]
[322937387,1713535846587,-504.8,0.00014898,2]
[322937388,1713535846598,-500.0,0.00014898,2]
[322937389,1713535846607,-500.0,0.00014898,2]
[322937390,1713535846616,-830.87,0.00014898,2]
[322937391,1713535846625,-1048.12,0.00014898,2]
[322937392,1713535846635,-500.0,0.00014898,2]
[322937393,1713535846645,-509.72,0.00014898,2]
[322937394,1713535846654,-975.66,0.00014898,2]
[322937395,1713535846663,-1798.67,0.00014898,2]
[322937396,1713535846674,-500.0,0.00014898,2]
[322937397,1713535846684,-500.0,0.00014898,2]
[322937398,1713535846694,-1934.62,0.00014898,2]
[322937399,1713535846703,-5247.18,0.00014898,2]
[322937400,1713535846712,-1857.03,0.00014898,2]
[322937401,1713535846721,-1843.98,0.00014898,2]
[322937402,1713535846731,-500.0,0.00014898,2]
[322937403,1713535846740,-1291.52,0.00014898,2]
[322937404,1713535846749,-500.0,0.00014898,2]
[322937405,1713535846759,-500.0,0.00014898,2]
[322937406,1713535846768,-15480.63,0.00014898,2]
[322937407,1713535846777,-849.57,0.00014898,2]
[322937408,1713535846788,-998.12,0.00014898,2]
[322937409,1713535846797,-500.0,0.00014898,2]
[322937410,1713535846806,-670.98,0.00014898,2]
[322937411,1713535846815,-4624.68,0.00014898,2]
[322937412,1713535846825,-2760.35,0.00014898,2]
[322937413,1713535846834,-500.0,0.00014898,2]
[322937414,1713535846844,-500.0,0.00014898,2]
[322937415,1713535846853,-500.0,0.00014898,2]
[322937416,1713535846862,-13562.06,0.00014898,2]
[322937417,1713535846871,-2331.47,0.00014898,2]
[322937419,1713535846880,-666.01,0.00014898,2]
[322937420,1713535846890,-913.31,0.00014898,2]
[322937421,1713535846899,-500.0,0.00014898,2]
[322937422,1713535846908,-500.0,0.00014898,2]
[322937423,1713535846917,-500.0,0.00014898,2]
[322937424,1713535846926,-724.4,0.00014898,2]
[322937425,1713535846935,-500.0,0.00014898,2]
[322937426,1713535846945,-500.0,0.00014898,2]
[322937427,1713535846955,-7003.47,0.00014898,2]
[322937428,1713535846964,-2634.21,0.00014898,2]
[322937429,1713535846974,-500.0,0.00014898,2]
[322937430,1713535846984,-636.17,0.00014898,2]
[322937431,1713535846993,-500.0,0.00014898,2]
[322937432,1713535847003,-500.0,0.00014898,2]
[322937433,1713535847012,-842.1,0.00014898,2]
[322937434,1713535847021,-500.0,0.00014898,2]
[322937435,1713535847030,-1709.83,0.00014898,2]
[322937436,1713535847043,-3554.74,0.00014898,2]
[322937437,1713535847053,-500.0,0.00014898,2]
[322937438,1713535847063,-500.0,0.00014898,2]
[322937439,1713535847073,-1276.41,0.00014898,2]
[322937440,1713535847082,-1881.59,0.00014898,2]
[322937441,1713535847091,-500.0,0.00014898,2]
[322937442,1713535847101,-660.64,0.00014898,2]
[322937443,1713535847110,-500.0,0.00014898,2]
[322937444,1713535847119,-500.0,0.00014898,2]
[322937445,1713535847128,-591.99,0.00014898,2]
[322937446,1713535847138,-11830.29,0.00014898,2]
[322937447,1713535847148,-518.61,0.00014898,2]
[322937448,1713535847158,-500.0,0.00014898,2]
[322937449,1713535847167,-500.0,0.00014898,2]
[322937450,1713535847176,-596.19,0.00014898,2]
[322937451,1713535847186,-500.0,0.00014898,2]
[322937452,1713535847195,-1586.61,0.00014898,2]
[322937453,1713535847204,-500.0,0.00014898,2]
[322937454,1713535847213,-500.0,0.00014898,2]
[322937455,1713535847223,-500.0,0.00014898,2]
[322937456,1713535847232,-21084.37,0.00014898,2]
[322937457,1713535847241,-501.63,0.00014898,2]
[322937458,1713535847251,-500.0,0.00014898,2]
[322937459,1713535847261,-4168.67,0.00014898,2]
[322937460,1713535847270,-500.0,0.00014898,2]
[322937461,1713535847279,-517.37228334,0.00014898,2]
[322937462,1713535847288,-1051.59,0.00014898,2]
[322937463,1713535847297,-1632.93,0.00014898,2]
[322937464,1713535847306,-745.68,0.00014898,2]
[322937465,1713535847315,-500.0,0.00014898,2]
[322937466,1713535847324,-1278.38,0.00014898,2]
[322937467,1713535847334,-624.95,0.00014898,2]
[322937468,1713535847343,-807.02,0.00014898,2]
[322937469,1713535847352,-102471.52,0.00014898,2]
[322937470,1713535847362,-500.0,0.00014898,2]
[322937471,1713535847371,-2794.61,0.00014898,2]
[322937472,1713535847380,-2514.92,0.00014898,2]
[322937473,1713535847390,-2394.7,0.00014898,2]
[322937474,1713535847399,-807.66,0.00014898,2]
[322937475,1713535847409,-500.0,0.00014898,2]
[322937476,1713535847418,-500.0,0.00014898,2]
[322937477,1713535847427,-4623.15,0.00014898,2]
[322937478,1713535847436,-500.0,0.00014898,2]
[322937479,1713535847445,-500.0,0.00014898,2]
[322937480,1713535847454,-1840.41,0.00014898,2]
[322937481,1713535847464,-1421.71,0.00014898,2]
[322937482,1713535847473,-500.0,0.00014898,2]
[322937483,1713535847482,-1165.58,0.00014898,2]
[322937484,1713535847492,-500.0,0.00014898,2]
[322937485,1713535847501,-500.0,0.00014898,2]
[322937486,1713535847511,-5682.43,0.00014898,2]
[322937487,1713535847520,-500.0,0.00014898,2]
[322937488,1713535847529,-1198.64,0.00014898,2]
[322937489,1713535847539,-500.0,0.00014898,2]
[322937490,1713535847548,-500.0,0.00014898,2]
[322937491,1713535847558,-1146.28,0.00014898,2]
[322937492,1713535847567,-7698.24,0.00014898,2]
[322937493,1713535847576,-638.93,0.00014898,2]
[322937494,1713535847586,-1719.9,0.00014898,2]
[322937495,1713535847596,-500.0,0.00014898,2]
[322937496,1713535847605,-500.0,0.00014898,2]
[322937497,1713535847614,-5472.51,0.00014898,2]
[322937498,1713535847623,-1577.17,0.00014898,2]
[322937499,1713535847633,-522.12460387,0.00014898,2]
[322937500,1713535847643,-8996.02,0.00014898,2]
[322937501,1713535847653,-500.0,0.00014898,2]
[322937502,1713535847663,-500.0,0.00014898,2]
[322937503,1713535847673,-552.22,0.00014898,2]
[322937504,1713535847684,-500.0,0.00014898,2]
[322937505,1713535847693,-1200.96,0.00014898,2]
[322937506,1713535847703,-500.0,0.00014898,2]
[322937507,1713535847712,-2212.07,0.00014898,2]
[322937508,1713535847721,-508.91208347,0.00014898,2]
[322937509,1713535847730,-636.57,0.00014898,2]
[322937510,1713535847741,-500.0,0.00014898,2]
[322937511,1713535847750,-500.0,0.00014898,2]
[322937512,1713535847761,-500.0,0.00014898,2]
[322937513,1713535847770,-500.0,0.00014898,2]
[322937514,1713535847779,-501.69655199,0.00014898,2]
[322937515,1713535847791,-4721.47,0.00014898,2]
[322937516,1713535847800,-500.0,0.00014898,2]
[322937517,1713535847810,-500.0,0.00014898,2]
[322937518,1713535847819,-6115.97,0.00014898,2]
[322937519,1713535847828,-500.0,0.00014898,2]
[322937520,1713535847838,-672.48,0.00014898,2]
[322937521,1713535847847,-500.0,0.00014898,2]
[322937522,1713535847856,-501.04493043,0.00014898,2]
[322937523,1713535847865,-4199.06,0.00014898,2]
[322937524,1713535847874,-500.0,0.00014898,2]
[322937525,1713535847883,-522.38,0.00014898,2]
[322937526,1713535847892,-500.0,0.00014898,2]
[322937527,1713535847901,-500.0,0.00014898,2]
[322937528,1713535847911,-6854.52,0.00014898,2]
[322937529,1713535847920,-1135.7,0.00014898,2]
[322937530,1713535847929,-1678.26,0.00014898,2]
[322937531,1713535847938,-500.0,0.00014898,2]
[322937532,1713535847948,-526.39,0.00014898,2]
[322937533,1713535847958,-1417.59,0.00014898,2]
[322937534,1713535847968,-500.0,0.00014898,2]
[322937535,1713535847978,-500.0,0.00014898,2]
[322937536,1713535847987,-500.0,0.00014898,2]
[322937537,1713535847997,-5358.08,0.00014898,2]
[322937538,1713535848006,-4597.56,0.00014898,2]
[322937539,1713535848015,-1005.95,0.00014898,2]
[322937540,1713535848024,-5312.02,0.00014898,2]
[322937541,1713535848034,-18297.04,0.00014898,2]
[322937542,1713535848045,-500.0,0.00014898,2]
[322937543,1713535848057,-500.0,0.00014898,2]
[322937544,1713535848066,-616.64,0.00014898,2]
[322937545,1713535848075,-500.0,0.00014898,2]
[322937546,1713535848084,-500.89774376,0.00014898,2]
[322937547,1713535848093,-666.34,0.00014898,2]
[322937548,1713535848102,-2797.58,0.00014898,2]
[322937549,1713535848111,-1186.54,0.00014898,2]
[322937550,1713535848121,-743.09,0.00014898,2]
[322937551,1713535848130,-738.1,0.00014898,2]
[322937552,1713535848139,-5190.07,0.00014898,2]
[322937553,1713535848149,-715.48,0.00014898,2]
[322937554,1713535848158,-1077.85,0.00014898,2]
[322937555,1713535848167,-1295.04,0.00014898,2]
[322937556,1713535848176,-500.0,0.00014898,2]
[322937557,1713535848185,-4252.03,0.00014898,2]
[322937558,1713535848194,-500.0,0.00014898,2]
[322937559,1713535848203,-1314.58,0.00014898,2]
[322937560,1713535848212,-513.91,0.00014898,2]
[322937561,1713535848221,-948.21,0.00014898,2]
[322937562,1713535848230,-500.99055977,0.00014898,2]
[322937563,1713535848239,-500.0,0.00014898,2]
[322937564,1713535848248,-500.0,0.00014898,2]
[322937565,1713535848258,-500.0,0.00014898,2]
[322937566,1713535848268,-2058.08,0.00014898,2]
[322937567,1713535848277,-1092.57,0.00014898,2]
[322937568,1713535848288,-575.57847312,0.00014898,2]
[322937569,1713535848297,-1632.01,0.00014898,2]
[322937570,1713535848306,-772.82,0.00014898,2]
[322937571,1713535848315,-1368.24,0.00014898,2]
[322937572,1713535848324,-500.18096796,0.00014898,2]
[322937573,1713535848333,-500.0,0.00014898,2]
[322937574,1713535848342,-3270.6,0.00014898,2]
[322937575,1713535848352,-500.0,0.00014898,2]
[322937576,1713535848361,-1336.22,0.00014898,2]
[322937577,1713535848370,-6888.91,0.00014898,2]
[322937578,1713535848380,-500.0,0.00014898,2]
[322937579,1713535848391,-500.0,0.00014898,2]
[322937580,1713535848400,-500.0,0.00014898,2]
[322937581,1713535848409,-1221.36,0.00014898,2]
[322937582,1713535848419,-500.0,0.00014898,2]
[322937583,1713535848428,-3213.91,0.00014898,2]
[322937584,1713535848437,-500.0,0.00014898,2]
[322937585,1713535848446,-1595.0,0.00014898,2]
[322937586,1713535848456,-500.0,0.00014898,2]
[322937587,1713535848465,-873.4,0.00014898,2]
[322937588,1713535848475,-8830.11,0.00014898,2]
[322937589,1713535848485,-500.0,0.00014898,2]
[322937590,1713535848494,-500.0,0.00014898,2]
[322937591,1713535848504,-2162.76,0.00014898,2]
[322937592,1713535848525,-500.0,0.00014898,2]
[322937593,1713535848535,-1091.99,0.00014898,2]
[322937594,1713535848546,-500.0,0.00014898,2]
[322937595,1713535848557,-500.0,0.00014898,2]
[322937596,1713535848566,-844.02,0.00014898,2]
[322937597,1713535848576,-977.92,0.00014898,2]
[322937598,1713535848896,-500.0,0.00014898,2]
[322937599,1713535848919,-6610.26,0.00014898,2]
[322937600,1713535848929,-12410.2,0.00014898,2]
[322937601,1713535848939,-500.0,0.00014898,2]
[322937602,1713535848948,-500.0,0.00014898,2]
[322937603,1713535848957,-500.0,0.00014898,2]
[322937604,1713535848966,-500.0,0.00014898,2]
[322937605,1713535848975,-500.03559823,0.00014898,2]
[322937606,1713535848984,-766.81,0.00014898,2]
[322937607,1713535848993,-500.0,0.00014898,2]
[322937608,1713535849003,-8471.72,0.00014898,2]
[322937609,1713535849012,-16804.52,0.00014898,2]
[322937610,1713535849021,-156.08283894,0.00014898,2]
[322937611,1713535849030,-500.0,0.00014898,2]
[322937612,1713535849041,-3856.78,0.00014898,2]
[322937613,1713535849050,-500.0,0.00014898,2]
[322937614,1713535849059,-500.12148276,0.00014898,2]
[322937615,1713535849069,-1195.15,0.00014898,2]
[322937616,1713535849078,-500.0,0.00014898,2]
[322937617,1713535849087,-500.0,0.00014898,2]
[322937618,1713535849097,-1131.0,0.00014898,2]
[322937619,1713535849106,-1042.76,0.00014898,2]
[322937620,1713535849115,-1809.28,0.00014898,2]
[322937621,1713535849124,-500.0,0.00014898,2]
[322937622,1713535849134,-500.0,0.00014898,2]
[322937623,1713535849143,-586.09,0.00014898,2]
[322937624,1713535849152,-501.22064763,0.00014898,2]
[322937625,1713535849162,-500.0,0.00014898,2]
[322937626,1713535849171,-6349.1015,0.00014898,2]
[322937627,1713535849180,-500.0,0.00014899,2]
[322937628,1713535849190,-666.6,0.00014899,2]
[322937629,1713535849199,-1978.3,0.00014899,2]
[322937630,1713535849208,-2010.16,0.00014899,2]
[322937631,1713535849218,-2635.8,0.00014899,2]
[322937632,1713535849227,-2063.33,0.00014899,2]
[322937633,1713535849237,-3414.14,0.00014899,2]
[322937634,1713535849246,-3118.43,0.00014899,2]
[322937635,1713535849257,-2239.17,0.00014899,2]
[322937636,1713535849267,-3303.18,0.00014899,2]
[322937637,1713535849277,-2382.91,0.00014899,2]
[322937638,1713535849288,-893.25,0.00014899,2]
[322937639,1713535849298,-1654.92,0.00014899,2]
[322937640,1713535849307,-500.0,0.00014899,2]
[322937641,1713535849316,-2444.46,0.00014899,2]
[322937642,1713535849325,-500.0,0.00014899,2]
[322937643,1713535849334,-500.0,0.00014899,2]
[322937644,1713535849344,-944.2,0.00014899,2]
[322937645,1713535849353,-2665.73,0.00014899,2]
[322937646,1713535849363,-1302.7,0.00014899,2]
[322937647,1713535849373,-3681.3,0.00014899,2]
[322937648,1713535849382,-1964.51,0.00014899,2]
[322937649,1713535849392,-2547.0,0.00014899,2]
[322937650,1713535849401,-2967.73,0.00014899,2]
[322937651,1713535849411,-2335.23,0.00014899,2]
[322937652,1713535849420,-1307.99,0.00014899,2]
[322937653,1713535849430,-1016.31,0.00014899,2]
[322937654,1713535849439,-1727.93,0.00014899,2]
[322937655,1713535849449,-1260.39,0.00014899,2]
[322937656,1713535849458,-1632.79,0.00014899,2]
[322937657,1713535849468,-2550.36,0.00014899,2]
[322937658,1713535849478,-500.0,0.00014899,2]
[322937659,1713535849488,-2630.72,0.00014899,2]
[322937660,1713535849498,-2443.63,0.00014899,2]
[322937661,1713535849508,-3003.61,0.00014899,2]
[322937662,1713535849518,-500.0,0.00014899,2]
[322937663,1713535849528,-500.0,0.00014899,2]
[322937664,1713535849539,-1886.41,0.00014899,2]
[322937665,1713535849549,-3017.64,0.00014899,2]
[322937666,1713535849559,-1140.79,0.00014899,2]
[322937667,1713535849568,-1299.19,0.00014899,2]
[322937668,1713535849578,-1616.39,0.00014899,2]
[322937669,1713535849588,-500.0,0.00014899,2]
[322937670,1713535849602,-500.0,0.00014899,2]
[322937671,1713535849611,-753.72,0.00014899,2]
[322937672,1713535849621,-500.0,0.00014899,2]
[322937673,1713535849631,-2638.02,0.00014899,2]
[322937674,1713535849641,-1362.66,0.00014899,2]
[322937675,1713535849650,-561.12,0.00014899,2]
[322937676,1713535849660,-515.54221898,0.00014899,2]
[322937677,1713535849670,-1379.06,0.00014899,2]
[322937678,1713535849680,-500.0,0.00014899,2]
[322937679,1713535849689,-742.62,0.00014899,2]
[322937680,1713535849699,-500.0,0.00014899,2]
[322937681,1713535849709,-1011.65,0.00014899,2]
[322937682,1713535849718,-500.0,0.00014899,2]
[322937683,1713535849728,-2543.95,0.00014899,2]
[322937684,1713535849737,-4473.17,0.00014899,2]
[322937685,1713535849747,-2552.14,0.00014899,2]
[322937686,1713535849756,-1028.52,0.00014899,2]
[322937687,1713535849766,-1252.41,0.00014899,2]
[322937688,1713535849776,-500.0,0.00014899,2]
[322937689,1713535849785,-500.0,0.00014899,2]
[322937690,1713535849796,-1567.94,0.00014899,2]
[322937691,1713535849805,-3390.43,0.00014899,2]
[322937692,1713535849815,-786.27,0.00014899,2]
[322937693,1713535849824,-2599.5,0.00014899,2]
[322937694,1713535849833,-6238.49,0.00014899,2]
[322937695,1713535849843,-2793.9,0.00014899,2]
[322937696,1713535849852,-500.0,0.00014899,2]
[322937697,1713535849861,-2970.02,0.00014899,2]
[322937698,1713535849871,-3456.79,0.00014899,2]
[322937699,1713535849880,-5261.38,0.00014899,2]
[322937700,1713535849890,-1844.51,0.00014899,2]
[322937701,1713535849899,-1171.98,0.00014899,2]
[322937702,1713535849909,-3653.25,0.00014899,2]
[322937703,1713535849918,-3070.45,0.00014899,2]
[322937704,1713535849928,-500.0,0.00014899,2]
[322937705,1713535849937,-3400.27,0.00014899,2]
[322937706,1713535849946,-3462.89,0.00014899,2]
[322937707,1713535849955,-3198.72,0.00014899,2]
[322937708,1713535849964,-3593.12,0.00014899,2]
[322937709,1713535849973,-500.0,0.00014899,2]
[322937710,1713535849983,-4054.13,0.00014899,2]
[322937711,1713535849992,-4947.91,0.00014899,2]
[322937712,1713535850002,-538.19,0.00014899,2]
[322937713,1713535850011,-500.0,0.00014899,2]
[322937714,1713535850020,-684.87,0.00014899,2]
[322937715,1713535850030,-500.50064799,0.00014899,2]
[322937716,1713535850041,-418.79,0.000149,2]
[322937717,1713535850051,-150.0,0.000149,2]
[322937718,1713535850060,-5370.17,0.00014996,2]
[322937719,1713535850070,-7981.14,0.00014996,2]
[322937720,1713535850080,-18824.22,0.00014996,2]
[322937721,1713535850089,-9916.57,0.00014996,2]
[322937722,1713535850099,-12812.3,0.00014996,2]
[322937723,1713535850109,-18600.6,0.00014996,2]
[322937724,1713535850118,-7936.53,0.00014996,2]
[322937725,1713535850129,-6466.93,0.00014996,2]
[322937726,1713535850138,-10549.14,0.00014996,2]
[322937727,1713535850148,-4175.74,0.00014996,2]
[322937728,1713535850158,-1098.4,0.00014996,2]
[322937729,1713535850167,-2521.91,0.00014996,2]
[322937730,1713535850177,-6368.46,0.00014996,2]
[322937731,1713535850187,-6553.48,0.00014996,2]
[322937732,1713535850197,-584.5,0.00014996,2]
[322937733,1713535850207,-3986.6,0.00014996,2]
[322937734,1713535850217,-2327.06,0.00014996,2]
[322937735,1713535850227,-20291.19,0.00014996,2]
[322937736,1713535850236,-78928.58,0.00014996,2]
[322937737,1713535850246,-20409.19,0.00014996,2]
[322937738,1713535850256,-5556.19,0.00014996,2]
[322937739,1713535850266,-9305.78,0.00014997,2]
[322937740,1713535850275,-53537.44,0.00014997,2]
[322937741,1713535850284,-5244.64,0.00014997,2]
[322937742,1713535850295,-8123.91,0.00014997,2]
[322937743,1713535850305,-976.56,0.00014998,2]
[322937744,1713535850315,-500.0,0.00014998,2]
[322937745,1713535850325,-1085.72,0.00014998,2]
[322937746,1713535850334,-1595.91,0.00014998,2]
[322937747,1713535850349,-500.0,0.00014998,2]
[322937748,1713535850359,-500.0,0.00014998,2]
[322937749,1713535850369,-548.92,0.00014998,2]
[322937750,1713535850379,-500.0,0.00014998,2]
[322937751,1713535850389,-500.0,0.00014998,2]
[322937752,1713535850399,-1733.8,0.00014998,2]
[322937753,1713535850409,-500.0,0.00014998,2]
[322937754,1713535850419,-704.82,0.00014998,2]
[322937755,1713535850428,-523.19,0.00014998,2]
[322937756,1713535850438,-912.79,0.00014998,2]
[322937757,1713535850447,-500.0,0.00014998,2]
[322937758,1713535850457,-500.0,0.00014998,2]
[322937759,1713535850467,-500.0,0.00014998,2]
[322937760,1713535850477,-500.0,0.00014998,2]
[322937761,1713535850487,-658.18,0.00014998,2]
[322937762,1713535850497,-500.0,0.00014998,2]
[322937763,1713535850507,-500.0,0.00014998,2]
[322937764,1713535850517,-500.0,0.00014998,2]
[322937765,1713535850527,-2758.33,0.00014998,2]
[322937766,1713535850538,-1541.04,0.00014998,2]
[322937767,1713535850547,-638.15,0.00014998,2]
[322937768,1713535850557,-500.0,0.00014998,2]
[322937769,1713535850567,-1489.48,0.00014998,2]
[322937770,1713535850577,-1000.28,0.00014998,2]
[322937771,1713535850587,-500.0,0.00014998,2]
[322937772,1713535850598,-305.65990178,0.00014998,2]
[322937773,1713535850608,-1125.26,0.00014998,2]
[322937774,1713535850618,-500.0,0.00014998,2]
[322937775,1713535850634,-500.0,0.00014998,2]
[322937776,1713535850681,-500.0,0.00014998,2]
[322937777,1713535850693,-500.0,0.00014998,2]
[322937778,1713535850703,-500.0,0.00014998,2]
[322937779,1713535850714,-792.31,0.00014998,2]
[322937780,1713535850725,-500.0,0.00014998,2]
[322937781,1713535850736,-500.0,0.00014998,2]
[322937782,1713535850748,-767.04,0.00014998,2]
[322937783,1713535850759,-2722.96,0.00014998,2]
[322937784,1713535850771,-500.0,0.00014998,2]
[322937785,1713535850782,-644.26,0.00014998,2]
[322937786,1713535850795,-634.32,0.00014998,2]
[322937787,1713535850805,-839.12,0.00014998,2]
[322937788,1713535850816,-1210.63,0.00014998,2]
[322937789,1713535850826,-1160.87,0.00014998,2]
[322937790,1713535850836,-500.0,0.00014998,2]
[322937791,1713535850846,-500.0,0.00014998,2]
[322937792,1713535850857,-1583.39,0.00014998,2]
[322937793,1713535850868,-761.24,0.00014998,2]
[322937794,1713535850879,-500.0,0.00014998,2]
[322937795,1713535850892,-1970.76,0.00014998,2]
[322937796,1713535850904,-562.02,0.00014998,2]
[322937797,1713535850914,-500.0,0.00014998,2]
[322937798,1713535850925,-500.0,0.00014998,2]
[322937799,1713535850936,-2158.3,0.00014998,2]
[322937800,1713535850946,-500.0,0.00014998,2]
[322937801,1713535850966,-517.44557566,0.00014998,2]
[322937802,1713535850976,-500.0,0.00014998,2]
[322937803,1713535850986,-1279.73,0.00014998,2]
[322937804,1713535850997,-500.0,0.00014998,2]
[322937805,1713535851008,-1932.36,0.00014998,2]
[322937806,1713535851018,-997.52,0.00014998,2]
[322937807,1713535851028,-782.17,0.00014998,2]
[322937808,1713535851040,-500.0,0.00014998,2]
[322937809,1713535851051,-500.0,0.00014998,2]
[322937810,1713535851061,-500.0,0.00014998,2]
[322937811,1713535851071,-508.83,0.00014998,2]
[322937812,1713535851082,-1362.32,0.00014998,2]
[322937813,1713535851092,-500.0,0.00014998,2]
[322937814,1713535851102,-2409.76,0.00014998,2]
[322937815,1713535851112,-500.0,0.00014998,2]
[322937816,1713535851122,-733.82,0.00014998,2]
[322937817,1713535851132,-500.0,0.00014998,2]
[322937818,1713535851144,-919.91,0.00014998,2]
[322937819,1713535851154,-500.0,0.00014998,2]
[322937820,1713535851166,-1149.42,0.00014998,2]
[322937821,1713535851177,-500.0,0.00014998,2]
[322937822,1713535851188,-500.0,0.00014998,2]
[322937823,1713535851199,-529.87659465,0.00014998,2]
[322937824,1713535851209,-500.0,0.00014998,2]
[322937825,1713535851219,-587.35,0.00014998,2]
[322937826,1713535851230,-2223.17,0.00014998,2]
[322937827,1713535851241,-1543.23,0.00014998,2]
[322937828,1713535851252,-1155.12,0.00014998,2]
[322937829,1713535851263,-828.07,0.00014998,2]
[322937830,1713535851274,-500.0,0.00014998,2]
[322937831,1713535851285,-647.16,0.00014998,2]
[322937832,1713535851298,-500.0,0.00014998,2]
[322937833,1713535851308,-500.0,0.00014998,2]
[322937834,1713535851319,-500.0,0.00014998,2]
[322937835,1713535851329,-500.0,0.00014998,2]
[322937836,1713535851340,-500.0,0.00014998,2]
[322937837,1713535851460,-653.49,0.00014998,2]
[322937838,1713535851470,-500.0,0.00014998,2]
[322937839,1713535851481,-1476.88,0.00014998,2]
[322937840,1713535851491,-1436.32,0.00014998,2]
[322937841,1713535851502,-921.54,0.00014998,2]
[322937842,1713535851513,-500.0,0.00014998,2]
[322937843,1713535851523,-500.0,0.00014998,2]
[322937844,1713535851533,-831.97,0.00014998,2]
[322937845,1713535851545,-299.28485546,0.00014998,2]
[322937846,1713535851555,-500.0,0.00014998,2]
[322937847,1713535851566,-500.0,0.00014998,2]
[322937848,1713535851577,-500.0,0.00014998,2]
[322937849,1713535851592,-500.0,0.00014998,2]
[322937850,1713535851603,-500.0,0.00014998,2]
[322937851,1713535851614,-500.0,0.00014998,2]
[322937852,1713535851624,-500.0,0.00014998,2]
[322937853,1713535851635,-500.0,0.00014998,2]
[322937854,1713535851646,-936.87,0.00014998,2]
[322937855,1713535851657,-543.04,0.00014998,2]
[322937856,1713535851668,-500.0,0.00014998,2]
[322937857,1713535851679,-500.0,0.00014998,2]
[322937858,1713535851689,-500.0,0.00014998,2]
[322937859,1713535851700,-500.0,0.00014998,2]
[322937860,1713535851710,-267.20871526,0.00014998,2]
[322937861,1713535851720,-500.0,0.00014998,2]
[322937862,1713535851730,-1453.48,0.00014998,2]
[322937863,1713535851740,-500.0,0.00014998,2]
[322937864,1713535851751,-500.0,0.00014998,2]
[322937865,1713535851763,-500.0,0.00014998,2]
[322937866,1713535851773,-500.0,0.00014998,2]
[322937867,1713535851784,-500.0,0.00014998,2]
[322937868,1713535851797,-1473.7,0.00014998,2]
[322937869,1713535851806,-500.0,0.00014998,2]
[322937870,1713535851816,-1154.08,0.00014998,2]
[322937871,1713535851826,-500.0,0.00014998,2]
[322937872,1713535851837,-905.53,0.00014998,2]
[322937873,1713535851847,-500.0,0.00014998,2]
[322937874,1713535851860,-2205.17,0.00014998,2]
[322937875,1713535851870,-526.01,0.00014998,2]
[322937876,1713535851880,-500.0,0.00014998,2]
[322937877,1713535851890,-1072.35,0.00014998,2]
[322937878,1713535851900,-1154.09,0.00014998,2]
[322937879,1713535851909,-500.0,0.00014998,2]
[322937880,1713535851919,-500.0,0.00014998,2]
[322937881,1713535851928,-500.0,0.00014998,2]
[322937882,1713535851937,-966.42,0.00014998,2]
[322937883,1713535851947,-626.82,0.00014998,2]